Workbook

Sheet Schedule J Detail by Client
A1: Program Name | B1: 3S - ABC Residential Services | J1: Provider ID | L1: =VLOOKUP(B1,List!A2:C132,2,FALSE) -> 555777999/444666888 | O1: FOR PROVIDER USE ONLY DO NOT SUBMIT WITH COST REPORT | Z1: ISS Hours | AG1: =IF(AK3=$AE$1,SUM(AK4:AK57),"") ->  | AH1: =IF(AL3=$AE$1,SUM(AL4:AL57),"") ->  | AM1: Professional Services | AU1: =SUM(AV4:AV57) -> 0 | AV1: Professional Svs Hrs Calculation
A2: Report Period | B2: 2018-01-01 | D2: 2018-12-31 | J2: =SUM(J4:J57) -> 11302 | Y2: Average | Z2: =IF(AN2=0,0,IF(J2=0,0,ROUND(+AN2/$J2,2))) -> 41.24 | AE2: Totals | AF2: =SUM(AF4:AF57) -> 131594.896 | AG2: 131241.421 | AH2: 2130065.53 | AI2: 43870.221 | AJ2: 87371.2 | AK2: 0 | AL2: 0 | AM2: 0 | AN2: 466068.16 | AO2: 23546.61 | AP2: 0 | AQ2: 56462.14 | AR2: 546076.91 | AS2: 2676142.44 | AT2: 2676142.44 | AU2: 11302
A3: Client Name (c) | B3: House or Cluster | C3: Client P1 ID (d) | D3: Srvc Type (SL, GH, SSP) | E3: P1 Srvc Code/RAC (v) | F3: Rate Start Date (e) | G3: Actual Start Date | H3: Rate End Date | I3: Actual End Date | J3: Resid Days Paid | K3: ISS Hrs PCD (f) | L3: Benchmark Rate (g) | M3: ISS Daily Rate | N3: Prof Svs Hrs PCD 1 (i) | O3: Prof Svs Hrly Rate 1 (j) | P3: Prof Svs Hrs PCD 2 (k) | Q3: Prof Svs Hrly Rate 2 (l) | R3: Prof Svs Hrs PCD 3 | S3: Prof Svs Hrly Rate 3 | T3: Prof Svs Hrs PCD 4 | U3: Prof Svs Hrly Rate 4 | V3: Prof Svs Daily Rate | W3: 1163 Training Rate PCD July 1,2018 - Dec 31, 2019 | X3: Total ISS Daily Rate | Y3: Enhanced Rate PCD (o) | Z3: Admin Rate PCD (q) | AA3: Transportion Rate PCD (r) | AB3: Other Non-ISS Rate PCD (s) Jan 1, 2018 - Dec 31, 2019 | AC3: 1163 Training Rate PCD (p) Jan 1, 2018 - Jun 30, 2019 | AD3: Total Non-ISS Daily Rate | AE3: Total ISS & Non-ISS Daily Rate | AF3: Annual ISS Hours Pd w/ Professional Svs | AG3: Annual ISS Hrs Pd w/o Professional Svs | AH3: Annual ISS Paid | AI3: GH | AJ3: SL | AK3: GH | AL3: SL | AM3: Annual Enhanced Rate Paid | AN3: Annual Admin Paid | AO3: Annual Transportation Paid | AP3: Annual Other Non-ISS Paid | AQ3: Annual 1163 Training Paid | AR3: Annual Non-ISS Paid | AS3: Annual ISS & Non-ISS Paid | AT3: Total ISS & Non-ISS Paid per Client | AU3: Total Days Paid per Client | AV3: Prof Svs Hrs Calculation
A4: Client A | B4: House 1 | C4: 500 | D4: GH | F4: 2018-01-01 | H4: 2018-12-31 | J4: =IF(F4>0,+IF(I4>0,I4,H4)-IF(G4>0,G4,F4)+1,0) -> 365 | K4: 15 | L4: 16.1 | M4: =+K4*L4 -> 241.5 | R4: 0 | S4: 0 | T4: 0 | U4: 0 | V4: =+N4*O4+P4*Q4 -> 0 | X4: =ROUND(M4+V4+W4,2) -> 241.5 | Y4: 0 | Z4: 56.8 | AA4: 0 | AB4: 0 | AC4: 6.45 | AD4: =SUM(Y4:AC4) -> 63.25 | AE4: =+X4+AD4 -> 304.75 | AF4: =IF(D4="SSP",0,+J4*(K4+N4+P4)) -> 5475 | AG4: =K4*J4 -> 5475 | AH4: =IF($D4="SSP",0,$J4*X4) -> 88147.5 | AI4: =IF(D4="GH",AG4,"") -> 5475 | AJ4: =IF(D4="SL",AG4,"") ->  | AK4: =IF(L4=$AF$1,AI4,"") ->  | AL4: =IF(L4=$AF$1,AJ4,"") ->  | AM4: =$J4*Y4 -> 0 | AN4: =IF($D4="SSP",0,$J4*Z4) -> 20732 | AO4: =J4*AA4 -> 0 | AP4: =$J4*AB4 -> 0 | AQ4: =$J4*AC4 -> 2354.25 | AR4: =IF($D4="SSP",0,$J4*AD4) -> 23086.25 | AS4: =AH4+AR4 -> 111233.75 | AT4: =IF(A5=A4,0,SUMIF($A$4:$A$4609,$A4,AH$4:AH$4609))+IF(A5=A4,0,SUMIF($A$4:$A$4609,$A4,AR$4:AR$4609)) -> 111233.75 | AU4: =IF(A5=A4,0,SUMIF($A$4:$A$4609,$A4,J$4:J$4609))+IF(A5=A4,0,SUMIF($A$4:$A$4609,$A4)) -> 365 | AV4: =IF($O4=$AT$1,$N4*$J4,0)+IF($Q4=$AT$1,$P4*$J4,0) -> 0
A5: Client B | B5: House 1 | C5: 501 | D5: GH | F5: 2018-01-01 | H5: 2018-06-30 | J5: 181 | K5: 10.5 | L5: 16.1 | M5: 169.05 | R5: 0 | S5: 0 | T5: 0 | U5: 0 | V5: 0 | X5: 169.05 | Y5: 0 | Z5: 55.8 | AA5: 0 | AB5: 0 | AC5: 4.52 | AD5: 60.32 | AE5: 229.37 | AF5: 1900.5 | AG5: 1900.5 | AH5: 30598.05 | AI5: 1900.5 | AM5: 0 | AN5: 10099.8 | AO5: 0 | AP5: 0 | AQ5: 818.12 | AR5: 10917.92 | AS5: 41515.97 | AT5: 0 | AU5: 0 | AV5: 0
A6: Client B | B6: House 1 | C6: 501 | D6: GH | F6: 2018-07-01 | H6: 2018-12-31 | J6: 184 | K6: 10.5 | L6: 17.28 | M6: 181.44 | R6: 0 | S6: 0 | T6: 0 | U6: 0 | V6: 0 | X6: 181.44 | Y6: 0 | Z6: 55.8 | AA6: 0 | AB6: 0 | AC6: 4.52 | AD6: 60.32 | AE6: 241.76 | AF6: 1932 | AG6: 1932 | AH6: 33384.96 | AI6: 1932 | AM6: 0 | AN6: 10267.2 | AO6: 0 | AP6: 0 | AQ6: 831.68 | AR6: 11098.88 | AS6: 44483.84 | AT6: 85999.81 | AU6: 365 | AV6: 0
A7: Client C | B7: House 1 | C7: 502 | D7: GH | F7: 2018-01-01 | H7: 2018-12-31 | J7: 365 | K7: 13 | L7: 16.1 | M7: 209.3 | R7: 0 | S7: 0 | T7: 0 | U7: 0 | V7: 0 | X7: 209.3 | Y7: 0 | Z7: 55.37 | AA7: 0 | AB7: 0 | AC7: 5.59 | AD7: 60.96 | AE7: 270.26 | AF7: 4745 | AG7: 4745 | AH7: 76394.5 | AI7: 4745 | AM7: 0 | AN7: 20210.05 | AO7: 0 | AP7: 0 | AQ7: 2040.35 | AR7: 22250.4 | AS7: 98644.9 | AT7: 98644.9 | AU7: 365 | AV7: 0
A8: Client D | B8: House 1 | C8: 503 | D8: GH | F8: 2018-01-01 | H8: 2018-06-30 | J8: 181 | K8: 7.5 | L8: 16.1 | M8: 120.75 | R8: 0 | S8: 0 | T8: 0 | U8: 0 | V8: 0 | X8: 120.75 | Y8: 0 | Z8: 52.32 | AA8: 0 | AB8: 0 | AC8: 3.23 | AD8: 55.55 | AE8: 176.3 | AF8: 1357.5 | AG8: 1357.5 | AH8: 21855.75 | AI8: 1357.5 | AM8: 0 | AN8: 9469.92 | AO8: 0 | AP8: 0 | AQ8: 584.63 | AR8: 10054.55 | AS8: 31910.3 | AT8: 0 | AU8: 0 | AV8: 0
A9: Client D | B9: House 1 | C9: 503 | D9: GH | F9: 2018-07-01 | H9: 2018-12-31 | J9: 184 | K9: 7.5 | L9: 17.28 | M9: 129.6 | R9: 0 | S9: 0 | T9: 0 | U9: 0 | V9: 0 | X9: 129.6 | Y9: 0 | Z9: 52.32 | AA9: 0 | AB9: 0 | AC9: 3.23 | AD9: 55.55 | AE9: 185.15 | AF9: 1380 | AG9: 1380 | AH9: 23846.4 | AI9: 1380 | AM9: 0 | AN9: 9626.88 | AO9: 0 | AP9: 0 | AQ9: 594.32 | AR9: 10221.2 | AS9: 34067.6 | AT9: 65977.9 | AU9: 365 | AV9: 0
A10: Client E | B10: House 1 | C10: 504 | D10: GH | F10: 2018-01-01 | H10: 2018-12-31 | J10: 365 | K10: 22 | L10: 16.1 | M10: 354.2 | R10: 0 | S10: 0 | T10: 0 | U10: 0 | V10: 0 | X10: 354.2 | Y10: 0 | Z10: 64.9 | AA10: 0 | AB10: 0 | AC10: 9.46 | AD10: 74.36 | AE10: 428.56 | AF10: 8030 | AG10: 8030 | AH10: 129283 | AI10: 8030 | AM10: 0 | AN10: 23688.5 | AO10: 0 | AP10: 0 | AQ10: 3452.9 | AR10: 27141.4 | AS10: 156424.4 | AT10: 156424.4 | AU10: 365 | AV10: 0
A11: Client F | B11: House 2 | C11: 505 | D11: GH | F11: 2018-01-01 | H11: 2018-12-31 | J11: 365 | K11: 14.5 | L11: 16.1 | M11: 233.45 | R11: 0 | S11: 0 | T11: 0 | U11: 0 | V11: 0 | X11: 233.45 | Y11: 0 | Z11: 56.04 | AA11: 0 | AB11: 0 | AC11: 6.24 | AD11: 62.28 | AE11: 295.73 | AF11: 5292.5 | AG11: 5292.5 | AH11: 85209.25 | AI11: 5292.5 | AM11: 0 | AN11: 20454.6 | AO11: 0 | AP11: 0 | AQ11: 2277.6 | AR11: 22732.2 | AS11: 107941.45 | AT11: 107941.45 | AU11: 365 | AV11: 0
A12: Client G | B12: House 2 | C12: 506 | D12: GH | F12: 2018-01-01 | H12: 2018-12-31 | J12: 365 | K12: 15.5 | L12: 16.1 | M12: 249.55 | R12: 0 | S12: 0 | T12: 0 | U12: 0 | V12: 0 | X12: 249.55 | Y12: 0 | Z12: 57.3 | AA12: 0 | AB12: 0 | AC12: 6.67 | AD12: 63.97 | AE12: 313.52 | AF12: 5657.5 | AG12: 5657.5 | AH12: 91085.75 | AI12: 5657.5 | AM12: 0 | AN12: 20914.5 | AO12: 0 | AP12: 0 | AQ12: 2434.55 | AR12: 23349.05 | AS12: 114434.8 | AT12: 114434.8 | AU12: 365 | AV12: 0
A13: Client H | B13: House 2 | C13: 507 | D13: GH | F13: 2018-01-01 | H13: 2018-08-31 | J13: 243 | K13: 18.5 | L13: 16.1 | M13: 297.85 | R13: 0 | S13: 0 | T13: 0 | U13: 0 | V13: 0 | X13: 297.85 | Y13: 0 | Z13: 59.6 | AA13: 0 | AB13: 0 | AC13: 7.96 | AD13: 67.56 | AE13: 365.41 | AF13: 4495.5 | AG13: 4495.5 | AH13: 72377.55 | AI13: 4495.5 | AM13: 0 | AN13: 14482.8 | AO13: 0 | AP13: 0 | AQ13: 1934.28 | AR13: 16417.08 | AS13: 88794.63 | AT13: 0 | AU13: 0 | AV13: 0
A14: Client H | B14: House 2 | C14: 507 | D14: GH | F14: 2018-09-01 | H14: 2018-12-31 | J14: 122 | K14: 25 | L14: 16.1 | M14: 402.5 | R14: 0 | S14: 0 | T14: 0 | U14: 0 | V14: 0 | X14: 402.5 | Y14: 0 | Z14: 60.02 | AA14: 0 | AB14: 0 | AC14: 10.75 | AD14: 70.77 | AE14: 473.27 | AF14: 3050 | AG14: 3050 | AH14: 49105 | AI14: 3050 | AM14: 0 | AN14: 7322.44 | AO14: 0 | AP14: 0 | AQ14: 1311.5 | AR14: 8633.94 | AS14: 57738.94 | AT14: 146533.57 | AU14: 365 | AV14: 0
A15: Client I | B15: House 2 | C15: 508 | D15: GH | F15: 2018-01-01 | H15: 2018-12-31 | I15: 2018-01-21 | J15: 21 | K15: 10 | L15: 16.1 | M15: 161 | R15: 0 | S15: 0 | T15: 0 | U15: 0 | V15: 0 | X15: 161 | Y15: 0 | Z15: 54.4 | AA15: 0 | AB15: 0 | AC15: 4.3 | AD15: 58.7 | AE15: 219.7 | AF15: 210 | AG15: 210 | AH15: 3381 | AI15: 210 | AM15: 0 | AN15: 1142.4 | AO15: 0 | AP15: 0 | AQ15: 90.3 | AR15: 1232.7 | AS15: 4613.7 | AT15: 4613.7 | AU15: 21 | AV15: 0
A16: Client J | B16: House 3 | C16: 538 | D16: GH | F16: 2018-01-01 | H16: 2018-01-30 | J16: 30 | K16: 11.4907 | L16: 17.28 | M16: 198.559296 | R16: 0 | S16: 0 | T16: 0 | U16: 0 | V16: 0 | X16: 198.56 | Y16: 0 | Z16: 0 | AA16: 0 | AB16: 0 | AC16: 6.67 | AD16: 6.67 | AE16: 205.23 | AF16: 344.721 | AG16: 344.721 | AH16: 5956.8 | AI16: 344.721 | AM16: 0 | AN16: 0 | AO16: 0 | AP16: 0 | AQ16: 200.1 | AR16: 200.1 | AS16: 6156.9 | AT16: 6156.9 | AU16: 30 | AV16: 0
A17: Client 01 | B17: Cluster 1 | C17: 509 | D17: SL | F17: 2018-01-01 | H17: 2018-12-31 | J17: 365 | K17: 8.5 | L17: 16.1 | M17: 136.85 | N17: 0.2 | O17: 38.75 | R17: 0 | S17: 0 | T17: 0 | U17: 0 | V17: 7.75 | X17: 144.6 | Y17: 0 | Z17: 34.74 | AA17: 2.25 | AB17: 0 | AC17: 3.66 | AD17: 40.65 | AE17: 185.25 | AF17: 3175.5 | AG17: 3102.5 | AH17: 52779 | AJ17: 3102.5 | AM17: 0 | AN17: 12680.1 | AO17: 821.25 | AP17: 0 | AQ17: 1335.9 | AR17: 14837.25 | AS17: 67616.25 | AT17: 67616.25 | AU17: 365 | AV17: 0
A18: Client 02 | B18: Cluster 1 | C18: 510 | D18: SL | F18: 2018-01-01 | H18: 2018-12-31 | I18: 2018-06-30 | J18: 181 | K18: 9.2 | L18: 16.1 | M18: 148.12 | R18: 0 | S18: 0 | T18: 0 | U18: 0 | V18: 0 | X18: 148.12 | Y18: 0 | Z18: 34.98 | AA18: 2.25 | AB18: 0 | AC18: 3.96 | AD18: 41.19 | AE18: 189.31 | AF18: 1665.2 | AG18: 1665.2 | AH18: 26809.72 | AJ18: 1665.2 | AM18: 0 | AN18: 6331.38 | AO18: 407.25 | AP18: 0 | AQ18: 716.76 | AR18: 7455.39 | AS18: 34265.11 | AT18: 0 | AU18: 0 | AV18: 0
A19: Client 02 | B19: Cluster 1 | C19: 510 (Client 8) COCA | D19: SL | F19: 2018-07-01 | H19: 2018-07-31 | J19: 31 | K19: 9.2 | L19: 16.1 | M19: 148.12 | R19: 0 | S19: 0 | T19: 0 | U19: 0 | V19: 0 | X19: 148.12 | Y19: 0 | Z19: 34.98 | AA19: 2.25 | AB19: 0 | AC19: 3.96 | AD19: 41.19 | AE19: 189.31 | AF19: 285.2 | AG19: 285.2 | AH19: 4591.72 | AJ19: 285.2 | AM19: 0 | AN19: 1084.38 | AO19: 69.75 | AP19: 0 | AQ19: 122.76 | AR19: 1276.89 | AS19: 5868.61 | AT19: 40133.72 | AU19: 212 | AV19: 0
A20: Client 03 | B20: Cluster 1 | C20: 511 | D20: SL | F20: 2018-08-01 | G20: 2018-08-03 | H20: 2018-12-31 | I20: 2018-10-31 | J20: 90 | K20: 7.25 | L20: 16.1 | M20: 116.725 | R20: 0 | S20: 0 | T20: 0 | U20: 0 | V20: 0 | X20: 116.73 | Y20: 0 | Z20: 33.49 | AA20: 1.85 | AB20: 0 | AC20: 3.12 | AD20: 38.46 | AE20: 155.19 | AF20: 652.5 | AG20: 652.5 | AH20: 10505.7 | AJ20: 652.5 | AM20: 0 | AN20: 3014.1 | AO20: 166.5 | AP20: 0 | AQ20: 280.8 | AR20: 3461.4 | AS20: 13967.1 | AT20: 0 | AU20: 0 | AV20: 0
A21: Client 03 | B21: Cluster 1 | C21: 511 (Client 12) COCA | D21: SL | F21: 2018-11-01 | H21: 2018-12-31 | J21: 61 | K21: 7.25 | L21: 16.1 | M21: 116.725 | R21: 0 | S21: 0 | T21: 0 | U21: 0 | V21: 0 | X21: 116.73 | Y21: 0 | Z21: 33.49 | AA21: 3.5 | AB21: 0 | AC21: 3.12 | AD21: 40.11 | AE21: 156.84 | AF21: 442.25 | AG21: 442.25 | AH21: 7120.53 | AJ21: 442.25 | AM21: 0 | AN21: 2042.89 | AO21: 213.5 | AP21: 0 | AQ21: 190.32 | AR21: 2446.71 | AS21: 9567.24 | AT21: 23534.34 | AU21: 151 | AV21: 0
A22: Client 04 | B22: Cluster 2 | C22: 512 | D22: SL | F22: 2018-01-01 | H22: 2018-12-31 | I22: 2018-02-28 | J22: 59 | K22: 9.6 | L22: 16.1 | M22: 154.56 | R22: 0 | S22: 0 | T22: 0 | U22: 0 | V22: 0 | X22: 154.56 | Y22: 0 | Z22: 35.18 | AA22: 1.85 | AB22: 0 | AC22: 4.13 | AD22: 41.16 | AE22: 195.72 | AF22: 566.4 | AG22: 566.4 | AH22: 9119.04 | AJ22: 566.4 | AM22: 0 | AN22: 2075.62 | AO22: 109.15 | AP22: 0 | AQ22: 243.67 | AR22: 2428.44 | AS22: 11547.48 | AT22: 0 | AU22: 0 | AV22: 0
A23: Client 04 | B23: Cluster 2 | C23: 512 | D23: SL | F23: 2018-03-01 | H23: 2018-12-31 | J23: 306 | K23: 10.2 | L23: 16.1 | M23: 164.22 | N23: 0.35 | O23: 26.5 | R23: 0 | S23: 0 | T23: 0 | U23: 0 | V23: 9.275 | X23: 173.5 | Y23: 0 | Z23: 35.51 | AA23: 4.58 | AB23: 0 | AC23: 4.39 | AD23: 44.48 | AE23: 217.98 | AF23: 3228.3 | AG23: 3121.2 | AH23: 53091 | AJ23: 3121.2 | AM23: 0 | AN23: 10866.06 | AO23: 1401.48 | AP23: 0 | AQ23: 1343.34 | AR23: 13610.88 | AS23: 66701.88 | AT23: 78249.36 | AU23: 365 | AV23: 0
A24: Client 05 | B24: Cluster 2 | C24: 513 | D24: SL | F24: 2018-01-01 | H24: 2018-12-31 | I24: 2018-11-27 | J24: 331 | K24: 11.5 | L24: 16.1 | M24: 185.15 | R24: 0 | S24: 0 | T24: 0 | U24: 0 | V24: 0 | X24: 185.15 | Y24: 0 | Z24: 35.81 | AA24: 1.88 | AB24: 0 | AC24: 4.95 | AD24: 42.64 | AE24: 227.79 | AF24: 3806.5 | AG24: 3806.5 | AH24: 61284.65 | AJ24: 3806.5 | AM24: 0 | AN24: 11853.11 | AO24: 622.28 | AP24: 0 | AQ24: 1638.45 | AR24: 14113.84 | AS24: 75398.49 | AT24: 75398.49 | AU24: 331 | AV24: 0
A25: Client 06 | B25: Cluster 2 | C25: 514 | D25: SL | F25: 2018-05-18 | G25: 2018-05-15 | H25: 2018-12-31 | J25: 231 | K25: 9.75 | L25: 16.1 | M25: 156.975 | R25: 0 | S25: 0 | T25: 0 | U25: 0 | V25: 0 | X25: 156.98 | Y25: 0 | Z25: 35.18 | AA25: 2.35 | AB25: 0 | AC25: 4.19 | AD25: 41.72 | AE25: 198.7 | AF25: 2252.25 | AG25: 2252.25 | AH25: 36262.38 | AJ25: 2252.25 | AM25: 0 | AN25: 8126.58 | AO25: 542.85 | AP25: 0 | AQ25: 967.89 | AR25: 9637.32 | AS25: 45899.7 | AT25: 45899.7 | AU25: 231 | AV25: 0
A26: Client 07 | B26: Cluster 2 | C26: 515 | D26: SL | F26: 2018-01-01 | H26: 2018-06-30 | J26: 181 | K26: 8.5 | L26: 16.1 | M26: 136.85 | R26: 0 | S26: 0 | T26: 0 | U26: 0 | V26: 0 | X26: 136.85 | Y26: 0 | Z26: 39.13 | AA26: 2.5 | AB26: 0 | AC26: 3.66 | AD26: 45.29 | AE26: 182.14 | AF26: 1538.5 | AG26: 1538.5 | AH26: 24769.85 | AJ26: 1538.5 | AM26: 0 | AN26: 7082.53 | AO26: 452.5 | AP26: 0 | AQ26: 662.46 | AR26: 8197.49 | AS26: 32967.34 | AT26: 0 | AU26: 0 | AV26: 0
A27: Client 07 | B27: Cluster 2 | C27: 515 | D27: SL | F27: 2018-07-01 | H27: 2018-12-31 | J27: 184 | K27: 8.5 | L27: 16.1 | M27: 136.85 | R27: 0 | S27: 0 | T27: 0 | U27: 0 | V27: 0 | X27: 136.85 | Y27: 0 | Z27: 39.13 | AA27: 2.5 | AB27: 0 | AC27: 3.66 | AD27: 45.29 | AE27: 182.14 | AF27: 1564 | AG27: 1564 | AH27: 25180.4 | AJ27: 1564 | AM27: 0 | AN27: 7199.92 | AO27: 460 | AP27: 0 | AQ27: 673.44 | AR27: 8333.36 | AS27: 33513.76 | AT27: 66481.1 | AU27: 365 | AV27: 0
A28: Client 08 | B28: Cluster 2 | C28: 516 | D28: SL | F28: 2018-01-01 | H28: 2018-06-30 | J28: 181 | K28: 6.25 | L28: 16.1 | M28: 100.625 | R28: 0 | S28: 0 | T28: 0 | U28: 0 | V28: 0 | X28: 100.63 | Y28: 0 | Z28: 36 | AA28: 2.5 | AB28: 0 | AC28: 2.69 | AD28: 41.19 | AE28: 141.82 | AF28: 1131.25 | AG28: 1131.25 | AH28: 18214.03 | AJ28: 1131.25 | AM28: 0 | AN28: 6516 | AO28: 452.5 | AP28: 0 | AQ28: 486.89 | AR28: 7455.39 | AS28: 25669.42 | AT28: 0 | AU28: 0 | AV28: 0
A29: Client 08 | B29: Cluster 2 | C29: 516 | D29: SL | F29: 2018-07-01 | H29: 2018-12-31 | J29: 184 | K29: 6.5 | L29: 16.68 | M29: 108.42 | R29: 0 | S29: 0 | T29: 0 | U29: 0 | V29: 0 | X29: 108.42 | Y29: 0 | Z29: 36 | AA29: 2.5 | AB29: 0 | AC29: 2.69 | AD29: 41.19 | AE29: 149.61 | AF29: 1196 | AG29: 1196 | AH29: 19949.28 | AJ29: 1196 | AM29: 0 | AN29: 6624 | AO29: 460 | AP29: 0 | AQ29: 494.96 | AR29: 7578.96 | AS29: 27528.24 | AT29: 53197.66 | AU29: 365 | AV29: 0
A30: Client 09 | B30: Cluster 2 | C30: 517 | D30: SL | F30: 2018-01-01 | H30: 2018-06-30 | J30: 181 | K30: 8.2 | L30: 16.1 | M30: 132.02 | R30: 0 | S30: 0 | T30: 0 | U30: 0 | V30: 0 | X30: 132.02 | Y30: 0 | Z30: 36 | AA30: 3.25 | AB30: 0 | AC30: 3.53 | AD30: 42.78 | AE30: 174.8 | AF30: 1484.2 | AG30: 1484.2 | AH30: 23895.62 | AJ30: 1484.2 | AM30: 0 | AN30: 6516 | AO30: 588.25 | AP30: 0 | AQ30: 638.93 | AR30: 7743.18 | AS30: 31638.8 | AT30: 0 | AU30: 0 | AV30: 0
A31: Client 09 | B31: Cluster 2 | C31: 517 | D31: SL | F31: 2018-07-01 | H31: 2018-12-31 | J31: 184 | K31: 8.5 | L31: 16.68 | M31: 141.78 | R31: 0 | S31: 0 | T31: 0 | U31: 0 | V31: 0 | X31: 141.78 | Y31: 0 | Z31: 36 | AA31: 3.25 | AB31: 0 | AC31: 3.53 | AD31: 42.78 | AE31: 184.56 | AF31: 1564 | AG31: 1564 | AH31: 26087.52 | AJ31: 1564 | AM31: 0 | AN31: 6624 | AO31: 598 | AP31: 0 | AQ31: 649.52 | AR31: 7871.52 | AS31: 33959.04 | AT31: 65597.84 | AU31: 365 | AV31: 0
A32: Client 10 | B32: Cluster 3 | C32: 518 | D32: SL | F32: 2018-01-01 | H32: 2018-12-31 | J32: 365 | K32: 13 | L32: 16.1 | M32: 209.3 | N32: 0.025 | O32: 26.5 | R32: 0 | S32: 0 | T32: 0 | U32: 0 | V32: 0.6625 | X32: 209.96 | Y32: 0 | Z32: 37.15 | AA32: 3.2 | AB32: 0 | AC32: 5.59 | AD32: 45.94 | AE32: 255.9 | AF32: 4754.125 | AG32: 4745 | AH32: 76635.4 | AJ32: 4745 | AM32: 0 | AN32: 13559.75 | AO32: 1168 | AP32: 0 | AQ32: 2040.35 | AR32: 16768.1 | AS32: 93403.5 | AT32: 93403.5 | AU32: 365 | AV32: 0
A33: Client 11 | B33: Cluster 3 | C33: 519 | D33: SL | F33: 2018-08-01 | G33: 2018-08-15 | H33: 2018-12-31 | I33: 2018-09-30 | J33: 47 | K33: 17.75 | L33: 16.1 | M33: 285.775 | R33: 0 | S33: 0 | T33: 0 | U33: 0 | V33: 0 | X33: 285.78 | Y33: 0 | Z33: 39.12 | AA33: 2.25 | AB33: 0 | AC33: 7.63 | AD33: 49 | AE33: 334.78 | AF33: 834.25 | AG33: 834.25 | AH33: 13431.66 | AJ33: 834.25 | AM33: 0 | AN33: 1838.64 | AO33: 105.75 | AP33: 0 | AQ33: 358.61 | AR33: 2303 | AS33: 15734.66 | AT33: 0 | AU33: 0 | AV33: 0
A34: Client 11 | B34: Cluster 3 | C34: 519 | D34: SL | F34: 2018-10-01 | H34: 2018-12-31 | J34: 92 | K34: 12.75 | L34: 16.1 | M34: 205.275 | R34: 0 | S34: 0 | T34: 0 | U34: 0 | V34: 0 | X34: 205.28 | Y34: 0 | Z34: 36.16 | AA34: 2.25 | AB34: 0 | AC34: 5.48 | AD34: 43.89 | AE34: 249.17 | AF34: 1173 | AG34: 1173 | AH34: 18885.76 | AJ34: 1173 | AM34: 0 | AN34: 3326.72 | AO34: 207 | AP34: 0 | AQ34: 504.16 | AR34: 4037.88 | AS34: 22923.64 | AT34: 38658.3 | AU34: 139 | AV34: 0
A35: Client 12 | B35: Cluster 3 | C35: 520 | D35: SL | F35: 2018-01-01 | H35: 2018-12-31 | J35: 365 | K35: 11.12 | L35: 16.1 | M35: 179.032 | R35: 0 | S35: 0 | T35: 0 | U35: 0 | V35: 0 | X35: 179.03 | Y35: 0 | Z35: 38 | AA35: 2.25 | AB35: 0 | AC35: 4.78 | AD35: 45.03 | AE35: 224.06 | AF35: 4058.8 | AG35: 4058.8 | AH35: 65345.95 | AJ35: 4058.8 | AM35: 0 | AN35: 13870 | AO35: 821.25 | AP35: 0 | AQ35: 1744.7 | AR35: 16435.95 | AS35: 81781.9 | AT35: 81781.9 | AU35: 365 | AV35: 0
A36: Client 13 | B36: Cluster 3 | C36: 521 | D36: SL | F36: 2018-01-01 | H36: 2018-12-31 | J36: =IF(F36>0,+IF(I36>0,I36,H36)-IF(G36>0,G36,F36)+1,0) -> 365 | K36: 10.5 | L36: 16.1 | M36: =+K36*L36 -> 169.05 | R36: 0 | S36: 0 | T36: 0 | U36: 0 | V36: =+N36*O36+P36*Q36 -> 0 | X36: =ROUND(M36+V36+W36,2) -> 169.05 | Y36: 0 | Z36: 35.51 | AA36: 1.85 | AB36: 0 | AC36: 4.52 | AD36: =SUM(Y36:AC36) -> 41.88 | AE36: =+X36+AD36 -> 210.93 | AF36: =IF(D36="SSP",0,+J36*(K36+N36+P36)) -> 3832.5 | AG36: =K36*J36 -> 3832.5 | AH36: =IF($D36="SSP",0,$J36*X36) -> 61703.25 | AI36: =IF(D36="GH",AG36,"") ->  | AJ36: =IF(D36="SL",AG36,"") -> 3832.5 | AK36: =IF(L36=$AF$1,AI36,"") ->  | AL36: =IF(L36=$AF$1,AJ36,"") ->  | AM36: =$J36*Y36 -> 0 | AN36: =IF($D36="SSP",0,$J36*Z36) -> 12961.15 | AO36: =J36*AA36 -> 675.25 | AP36: =$J36*AB36 -> 0 | AQ36: =$J36*AC36 -> 1649.8 | AR36: =IF($D36="SSP",0,$J36*AD36) -> 15286.2 | AS36: =AH36+AR36 -> 76989.45 | AT36: =IF(A37=A36,0,SUMIF($A$4:$A$4609,$A36,AH$4:AH$4609))+IF(A37=A36,0,SUMIF($A$4:$A$4609,$A36,AR$4:AR$4609)) -> 76989.45 | AU36: =IF(A37=A36,0,SUMIF($A$4:$A$4609,$A36,J$4:J$4609))+IF(A37=A36,0,SUMIF($A$4:$A$4609,$A36)) -> 365 | AV36: =IF($O36=$AT$1,$N36*$J36,0)+IF($Q36=$AT$1,$P36*$J36,0) -> 0
A37: Client 14 | B37: Cluster 3 | C37: 522 | D37: SL | F37: 2018-07-01 | H37: 2018-12-31 | I37: 2018-08-31 | J37: 62 | K37: 12.6 | L37: 16.1 | M37: 202.86 | R37: 0 | S37: 0 | T37: 0 | U37: 0 | V37: 0 | X37: 202.86 | Y37: 0 | Z37: 37.61 | AA37: 4.58 | AB37: 0 | AC37: 5.42 | AD37: 47.61 | AE37: 250.47 | AF37: 781.2 | AG37: 781.2 | AH37: 12577.32 | AJ37: 781.2 | AM37: 0 | AN37: 2331.82 | AO37: 283.96 | AP37: 0 | AQ37: 336.04 | AR37: 2951.82 | AS37: 15529.14 | AT37: 0 | AU37: 0 | AV37: 0
A38: Client 14 | B38: Cluster 3 | C38: 522 | D38: SL | F38: 2018-09-01 | H38: 2018-12-31 | J38: 122 | K38: 16.25 | L38: 16.1 | M38: 261.625 | R38: 0 | S38: 0 | T38: 0 | U38: 0 | V38: 0 | X38: 261.63 | Y38: 0 | Z38: 37.61 | AA38: 4.25 | AB38: 0 | AC38: 6.99 | AD38: 48.85 | AE38: 310.48 | AF38: 1982.5 | AG38: 1982.5 | AH38: 31918.86 | AJ38: 1982.5 | AM38: 0 | AN38: 4588.42 | AO38: 518.5 | AP38: 0 | AQ38: 852.78 | AR38: 5959.7 | AS38: 37878.56 | AT38: 53407.7 | AU38: 184 | AV38: 0
A39: Client 15 | B39: Cluster 3 | C39: 523 | D39: SL | F39: 2018-02-01 | H39: 2018-12-31 | I39: 2018-09-30 | J39: 242 | K39: 8.75 | L39: 16.1 | M39: 140.875 | R39: 0 | S39: 0 | T39: 0 | U39: 0 | V39: 0 | X39: 140.88 | Y39: 0 | Z39: 34.74 | AA39: 3.25 | AB39: 0 | AC39: 3.76 | AD39: 41.75 | AE39: 182.63 | AF39: 2117.5 | AG39: 2117.5 | AH39: 34092.96 | AJ39: 2117.5 | AM39: 0 | AN39: 8407.08 | AO39: 786.5 | AP39: 0 | AQ39: 909.92 | AR39: 10103.5 | AS39: 44196.46 | AT39: 0 | AU39: 0 | AV39: 0
A40: Client 15 | B40: Cluster 3 | C40: 523 | D40: SL | F40: 2018-10-01 | H40: 2018-12-31 | J40: 92 | K40: 8 | L40: 16.1 | M40: 128.8 | R40: 0 | S40: 0 | T40: 0 | U40: 0 | V40: 0 | X40: 128.8 | Y40: 0 | Z40: 34.74 | AA40: 1.88 | AB40: 0 | AC40: 3.44 | AD40: 40.06 | AE40: 168.86 | AF40: 736 | AG40: 736 | AH40: 11849.6 | AJ40: 736 | AM40: 0 | AN40: 3196.08 | AO40: 172.96 | AP40: 0 | AQ40: 316.48 | AR40: 3685.52 | AS40: 15535.12 | AT40: 59731.58 | AU40: 334 | AV40: 0
A41: Client 16 | B41: Cluster 3 | C41: 524 | D41: SL | F41: 2018-01-01 | H41: 2018-12-31 | J41: 365 | K41: 11.25 | L41: 16.1 | M41: 181.125 | N41: 0.2 | O41: 38.75 | P41: 0.25 | Q41: 26.5 | R41: 0 | S41: 0 | T41: 0 | U41: 0 | V41: 14.375 | X41: 195.5 | Y41: 0 | Z41: 35.99 | AA41: 2.5 | AB41: 0 | AC41: 4.84 | AD41: 43.33 | AE41: 238.83 | AF41: 4270.5 | AG41: 4106.25 | AH41: 71357.5 | AJ41: 4106.25 | AM41: 0 | AN41: 13136.35 | AO41: 912.5 | AP41: 0 | AQ41: 1766.6 | AR41: 15815.45 | AS41: 87172.95 | AT41: 87172.95 | AU41: 365 | AV41: 0
A42: Client 17 | B42: Cluster 4 | C42: 525 | D42: SL | F42: 2018-01-01 | H42: 2018-12-31 | J42: 365 | K42: 8.45 | L42: 16.1 | M42: 136.045 | R42: 0 | S42: 0 | T42: 0 | U42: 0 | V42: 0 | X42: 136.05 | Y42: 0 | Z42: 34.4 | AA42: 2.5 | AB42: 0 | AC42: 3.63 | AD42: 40.53 | AE42: 176.58 | AF42: 3084.25 | AG42: 3084.25 | AH42: 49658.25 | AJ42: 3084.25 | AM42: 0 | AN42: 12556 | AO42: 912.5 | AP42: 0 | AQ42: 1324.95 | AR42: 14793.45 | AS42: 64451.7 | AT42: 64451.7 | AU42: 365 | AV42: 0
A43: Client 18 | B43: Cluster 4 | C43: 526 | D43: SL | F43: 2018-01-01 | H43: 2018-12-31 | J43: 365 | K43: 18.25 | L43: 16.1 | M43: 293.825 | R43: 0 | S43: 0 | T43: 0 | U43: 0 | V43: 0 | X43: 293.83 | Y43: 0 | Z43: 39.68 | AA43: 2.5 | AB43: 0 | AC43: 7.85 | AD43: 50.03 | AE43: 343.86 | AF43: 6661.25 | AG43: 6661.25 | AH43: 107247.95 | AJ43: 6661.25 | AM43: 0 | AN43: 14483.2 | AO43: 912.5 | AP43: 0 | AQ43: 2865.25 | AR43: 18260.95 | AS43: 125508.9 | AT43: 125508.9 | AU43: 365 | AV43: 0
A44: Client 19 | B44: Cluster 4 | C44: 527 | D44: SL | F44: 2018-01-01 | H44: 2018-12-31 | J44: 365 | K44: 16.2 | L44: 16.1 | M44: 260.82 | R44: 0 | S44: 0 | T44: 0 | U44: 0 | V44: 0 | X44: 260.82 | Y44: 0 | Z44: 37.61 | AA44: 3.25 | AB44: 0 | AC44: 6.97 | AD44: 47.83 | AE44: 308.65 | AF44: 5913 | AG44: 5913 | AH44: 95199.3 | AJ44: 5913 | AM44: 0 | AN44: 13727.65 | AO44: 1186.25 | AP44: 0 | AQ44: 2544.05 | AR44: 17457.95 | AS44: 112657.25 | AT44: 112657.25 | AU44: 365 | AV44: 0
A45: Client 20 | B45: Cluster 4 | C45: 528 | D45: SL | F45: 2018-01-01 | H45: 2018-12-31 | J45: 365 | K45: 12.8 | L45: 16.1 | M45: 206.08 | R45: 0 | S45: 0 | T45: 0 | U45: 0 | V45: 0 | X45: 206.08 | Y45: 0 | Z45: 42 | AA45: 3.47 | AB45: 0 | AC45: 5.5 | AD45: 50.97 | AE45: 257.05 | AF45: 4672 | AG45: 4672 | AH45: 75219.2 | AJ45: 4672 | AM45: 0 | AN45: 15330 | AO45: 1266.55 | AP45: 0 | AQ45: 2007.5 | AR45: 18604.05 | AS45: 93823.25 | AT45: 93823.25 | AU45: 365 | AV45: 0
A46: Client 21 | B46: Cluster 4 | C46: 529 | D46: SL | F46: 2018-01-01 | H46: 2018-12-31 | J46: 365 | K46: 14.75 | L46: 16.1 | M46: 237.475 | R46: 0 | S46: 0 | T46: 0 | U46: 0 | V46: 0 | X46: 237.48 | Y46: 0 | Z46: 36.88 | AA46: 1.88 | AB46: 0 | AC46: 6.34 | AD46: 45.1 | AE46: 282.58 | AF46: 5383.75 | AG46: 5383.75 | AH46: 86680.2 | AJ46: 5383.75 | AM46: 0 | AN46: 13461.2 | AO46: 686.2 | AP46: 0 | AQ46: 2314.1 | AR46: 16461.5 | AS46: 103141.7 | AT46: 103141.7 | AU46: 365 | AV46: 0
A47: Client 22 | B47: Cluster 4 | C47: 530 | D47: SL | F47: 2018-01-01 | H47: 2018-12-31 | J47: 365 | K47: 9.6 | L47: 16.1 | M47: 154.56 | R47: 0 | S47: 0 | T47: 0 | U47: 0 | V47: 0 | X47: 154.56 | Y47: 0 | Z47: 35.18 | AA47: 3.5 | AB47: 0 | AC47: 4.13 | AD47: 42.81 | AE47: 197.37 | AF47: 3504 | AG47: 3504 | AH47: 56414.4 | AJ47: 3504 | AM47: 0 | AN47: 12840.7 | AO47: 1277.5 | AP47: 0 | AQ47: 1507.45 | AR47: 15625.65 | AS47: 72040.05 | AT47: 72040.05 | AU47: 365 | AV47: 0
A48: Client 23 | B48: Cluster 4 | C48: 531 | D48: SL | F48: 2018-01-01 | H48: 2018-12-31 | J48: 365 | K48: 12.2 | L48: 16.1 | M48: 196.42 | R48: 0 | S48: 0 | T48: 0 | U48: 0 | V48: 0 | X48: 196.42 | Y48: 0 | Z48: 37.5 | AA48: 3.5 | AB48: 0 | AC48: 5.25 | AD48: 46.25 | AE48: 242.67 | AF48: 4453 | AG48: 4453 | AH48: 71693.3 | AJ48: 4453 | AM48: 0 | AN48: 13687.5 | AO48: 1277.5 | AP48: 0 | AQ48: 1916.25 | AR48: 16881.25 | AS48: 88574.55 | AT48: 88574.55 | AU48: 365 | AV48: 0
A49: Client 24 | B49: Cluster 4 | C49: 532 | D49: SL | F49: 2018-01-01 | H49: 2018-12-31 | J49: 365 | K49: 6.24 | L49: 16.1 | M49: 100.464 | R49: 0 | S49: 0 | T49: 0 | U49: 0 | V49: 0 | X49: 100.46 | Y49: 0 | Z49: 35.99 | AA49: 3.5 | AB49: 0 | AC49: 2.68 | AD49: 42.17 | AE49: 142.63 | AF49: 2277.6 | AG49: 2277.6 | AH49: 36667.9 | AJ49: 2277.6 | AM49: 0 | AN49: 13136.35 | AO49: 1277.5 | AP49: 0 | AQ49: 978.2 | AR49: 15392.05 | AS49: 52059.95 | AT49: 52059.95 | AU49: 365 | AV49: 0
A50: Client 25 | B50: Cluster 4 | C50: 533 | D50: SL | F50: 2018-06-05 | G50: 2018-06-06 | H50: 2018-12-31 | I50: 2018-07-30 | J50: 55 | K50: 11.5 | L50: 16.1 | M50: 185.15 | R50: 0 | S50: 0 | T50: 0 | U50: 0 | V50: 0 | X50: 185.15 | Y50: 0 | Z50: 36.5 | AA50: 5.76 | AB50: 0 | AC50: 4.95 | AD50: 47.21 | AE50: 232.36 | AF50: 632.5 | AG50: 632.5 | AH50: 10183.25 | AJ50: 632.5 | AM50: 0 | AN50: 2007.5 | AO50: 316.8 | AP50: 0 | AQ50: 272.25 | AR50: 2596.55 | AS50: 12779.8 | AT50: 12779.8 | AU50: 55 | AV50: 0
A51: Client 26 | B51: Cluster 4 | C51: 534 | D51: SL | F51: 2018-01-01 | H51: 2018-12-31 | J51: 365 | K51: 1.74 | L51: 16.1 | M51: 28.014 | R51: 0 | S51: 0 | T51: 0 | U51: 0 | V51: 0 | X51: 28.01 | Y51: 0 | Z51: 16.37 | AA51: 3.02 | AB51: 0 | AC51: 0.75 | AD51: 20.14 | AE51: 48.15 | AF51: 635.1 | AG51: 635.1 | AH51: 10223.65 | AJ51: 635.1 | AM51: 0 | AN51: 5975.05 | AO51: 1102.3 | AP51: 0 | AQ51: 273.75 | AR51: 7351.1 | AS51: 17574.75 | AT51: 17574.75 | AU51: 365 | AV51: 0
A52: Client 27 | B52: Cluster 4 | C52: 535 | D52: SL | F52: 2018-09-24 | H52: 2018-10-31 | I52: 2018-09-27 | J52: 4 | K52: 25.75 | L52: 16.1 | M52: 414.575 | R52: 0 | S52: 0 | T52: 0 | U52: 0 | V52: 0 | X52: 414.58 | Y52: 0 | Z52: 47.61 | AA52: 5.02 | AB52: 0 | AC52: 11.07 | AD52: 63.7 | AE52: 478.28 | AF52: 103 | AG52: 103 | AH52: 1658.32 | AJ52: 103 | AM52: 0 | AN52: 190.44 | AO52: 20.08 | AP52: 0 | AQ52: 44.28 | AR52: 254.8 | AS52: 1913.12 | AT52: 1913.12 | AU52: 4 | AV52: 0
A53: Client 28 | B53: Cluster 4 | C53: 536 | D53: SL | F53: 2018-01-01 | H53: 2018-04-30 | J53: 120 | K53: 10.94 | L53: 16.1 | M53: 176.134 | R53: 0 | S53: 0 | T53: 0 | U53: 0 | V53: 0 | X53: 176.13 | Y53: 0 | Z53: 36.74 | AA53: 2.45 | AB53: 0 | AC53: 4.7 | AD53: 43.89 | AE53: 220.02 | AF53: 1312.8 | AG53: 1312.8 | AH53: 21135.6 | AJ53: 1312.8 | AM53: 0 | AN53: 4408.8 | AO53: 294 | AP53: 0 | AQ53: 564 | AR53: 5266.8 | AS53: 26402.4 | AT53: 26402.4 | AU53: 120 | AV53: 0
A54: Client 29 | B54: Smith Ave | C54: 537 | D54: SSP | F54: 2018-01-01 | H54: 2018-12-31 | I54: 2017-12-31 | J54: 0 | K54: 8 | L54: 16.1 | M54: 128.8 | R54: 0 | S54: 0 | T54: 0 | U54: 0 | V54: 0 | X54: 128.8 | Y54: 0 | Z54: 34.06 | AA54: 6.23 | AB54: 0 | AC54: 3.44 | AD54: 43.73 | AE54: 172.53 | AF54: 0 | AG54: 0 | AH54: 0 | AM54: 0 | AN54: 0 | AO54: 0 | AP54: 0 | AQ54: 0 | AR54: 0 | AS54: 0 | AT54: 0 | AU54: 0 | AV54: 0
J55: 0 | M55: 0 | R55: 0 | S55: 0 | T55: 0 | U55: 0 | V55: 0 | X55: 0 | AD55: 0 | AE55: 0 | AF55: 0 | AG55: 0 | AH55: 0 | AM55: 0 | AN55: 0 | AO55: 0 | AP55: 0 | AQ55: 0 | AR55: 0 | AS55: 0 | AT55: 0 | AU55: 0 | AV55: 0
J56: 0 | M56: 0 | V56: 0 | X56: 0 | AD56: 0 | AE56: 0 | AF56: 0 | AG56: 0 | AH56: 0 | AM56: 0 | AN56: 0 | AO56: 0 | AP56: 0 | AQ56: 0 | AR56: 0 | AS56: 0 | AT56: 0 | AU56: 0 | AV56: 0
A58: Totals - Detail | J58: =SUBTOTAL(9,J4:J57) -> 11302 | AF58: =SUBTOTAL(9,AF4:AF57) -> 131594.896 | AG58: 131241.421 | AH58: 2130065.53 | AI58: 43870.221 | AJ58: 87371.2 | AK58: 0 | AL58: 0 | AM58: 0 | AN58: 466068.16 | AO58: 23546.61 | AP58: 0 | AQ58: 56462.14 | AR58: 546076.91 | AS58: 2676142.44 | AT58: 2676142.44 | AU58: 11302
A59: DSHS/DDA Schedule J Detail By Client (Rev. 12/18)
W60: =0.43*F60 -> 0 | AB60: =0.43*K60 -> 0 | AE60: =+X60+Y60+AB60+Z60+AA60 -> 0 | AP60: =J60*AA60 -> 0

Sheet Formulas for P1 Payment Rpt (hidden)
Q1: Schedule J Detail by Client Contracted Amount | R1: Schedule J Detail by Client Contracted Days | S1: Cost Variance | T1: Days Variance | U1: Sched J Rate | V1: Sched J Days | W1: Schedule J Total | X1: Days Variance | Y1: Dollars Variance | Z1: Comments | AA1: Resource Manager Response | AB1: Resource Manager Comments | AC1: Action taken by Analyst
Q2: =SUMIF('Schedule J Detail by Client'!$C$4:$C$307,I1,'Schedule J Detail by Client'!$AT$4:$AT$307) -> 0 | R2: =SUMIF('Schedule J Detail by Client'!$C$4:$C$307,I1,'Schedule J Detail by Client'!$AU$4:$AU$56) -> 0 | S2: =(M2+N2)-Q2 -> 0 | T2: =K2-R2 -> 0 | W2: =U2*V2 -> 0 | X2: =K2-V2 -> 0 | Y2: =M2+N2-W2 -> 0 | AD2: SA716 & SA722 | AE2: Supported Living & Group Home | AF2: =SUBTOTAL(9,#REF!) ->  | AH2: =SUBTOTAL(9,#REF!) -> 
V3: =SUBTOTAL(9,V2) -> 0 | W3: =SUBTOTAL(9,W2) -> 0 | X3: 0 | Y3: 0 | AD3: Provider1 Total | AF3: =SUM(AF2:AF2) ->  | AH3: =SUM(AH2:AH2) -> 
U5: Subtotal | X5: =SUBTOTAL(9,X2:X3) -> 0 | Y5: =SUBTOTAL(9,Y2:Y3) -> 0 | AD5: Less overpayments | AF5: 0 | AH5: 0
AD6: Add underpayments | AF6: 0 | AH6: 0
AD7: Adjusted Total | AF7: =SUM(AF2:AF2,AF5,AF6) ->  | AH7: =SUM(AH2:AH2,AH5,AH6) -> 
AD9: Sched J Check | AF9: =#REF! ->  | AH9: =#REF!+#REF! -> 
AD10: Difference | AF10: =AF7-AF9 ->  | AH10: =AH7-AH9 -> 

Sheet Other Codes (hidden)

Sheet Response List (hidden)
A2: Underpayment to be claimed
A3: Underpayment will not be claimed, please adjust settlement
A4: Overpayment to be adjusted in P1
A5: Overpayment will not to be adjusted in P1 (explain why in column AE)
A6: COCA to be issued (Copy Attached)
A7: COCA issued previously (Copy Attached)

Sheet List (hidden)
A1: PROVIDER | B1: P1 ID | C1: SSPS ID
A3: 1N - Aacres WA | B3: 111414301 | C3: 928190
A4: 1N - Aacres Spokane 2 | B4: 111414310
A5: 1N - Aacres Spokane 3 | B5: 111414309
A6: 1N - Adult Guidance & Empowerment Service | B6: 111684901 | C6: 131592
A7: 1N - Ambitions - Wenatchee, Omak, Moses Lake | B7: 111901903 | C7: 925218
A8: 1N - Ambitions - Spokane | B8: 111901906
A9: 1N - ARC of Spokane | B9: 111426502 | C9: 322383
A10: 1N - Assisted Residential Services | B10: 111705601 | C10: 343692
A11: 1N - Community Integrated Services | B11: 111425301 | C11: 823672
A12: 1N - Community Visions | B12: 111530102 | C12: 330801
A13: 1N - Dreamworks Residential | B13: 111913801 | C13: 621527
A14: 1N - Drive Services | B14: 111621401 | C14: 322188
A15: 1N - Excel Supported Living | B15: 111322002
A16: 1N - Grant County Developmental Disabilities | B16: 200012501 | C16: 162436
A17: 1N - Kaler House | B17: 111686001 | C17: 92824
A18: 1N - Latah Services | B18: 111762501 | C18: 836399
A19: 1N - Living In Fulfilling Environment | B19: 111777301 | C19: 58220
A20: 1N - LMK | B20: 111988202 | C20: 621505
A21: 1N - Mission Vista | B21: 111707401 | C21: 306053
A22: 1N - Parent's Cooperative Society for the Handicapped (Merry Glen) | B22: 111328901 | C22: 158076
A23: 1N - Skils'kin | B23: 111632701 | C23: 695912
A24: 1S - Alternative Residential Services | B24: 111625401 | C24: 450461
A25: 1S - Ambitions - Kennewick | B25: 111901901 | C25: 925274
A26: 1S - Ambitions - Yakima | B26: 111901907
A27: 1S - Community Living | B27: 111962202 | C27: 120191
A28: 1S - Deaf Access Washington | B28: 111321901 | C28: 91176
A29: 1S - Elmview | B29: 111604101 | C29: 340022
A30: 1S - Habilitat | B30: 111449601 | C30: 531937
A31: 1S - Kittitas Interactive Management | B31: 111688701 | C31: 45134
A32: 1S - Reach Supported Living | B32: 209862801
A33: 1S - Tri-Cities Residential Services | B33: 111872501 | C33: 83918
A34: 1S - Valley Residential Services | B34: 111777901 | C34: 66754
A35: 2N - Aacres | B35: 111414307
A36: 2N - Access Living | B36: 111675101 | C36: 881577
A37: 2N - All Heart Agency | B37: 111961601 | C37: 53910
A38: 2N - Alpha Supported Living Services | B38: 111320902
A39: 2N - Ambitions Whatcom | B39: 111901908
A40: 2N - Camelot Society | B40: 101955202
A41: 2N - Cascade Connections | B41: 111724102 | C41: 588510/780404
A42: 2N - Evergreen Supported Living | B42: 111690301 | C42: 197341
A43: 2N - Holly Community Services | B43: 111765001 | C43: 956087
A44: 2N - La Casa de Esperanza | B44: 111390801 | C44: 662956
A45: 2N - Puffin Island | B45: 111959501 | C45: 119992
A46: 2N - Quilceda Community Services | B46: 111321203 | C46: 877
A47: 2N - Rehabco | B47: 111681901 | C47: 57208
A48: 2N - Rescare | B48: 111968512
A49: 2N - Sails | B49: 111805705
A50: 2N - Service Alternatives for WA | B50: 111513304 | C50: 301532
A51: 2N - Snohomish Supportive Living Services | B51: 111518901 | C51: 339336
A52: 2N - Soundview Association | B52: 111830201 | C52: 660205/973647
A53: 2N - Steps Toward Independence | B53: 112034301 | C53: 877402
A54: 2N - Sunrise Services | B54: 203434610 | C54: 177937
A55: 2N - Village Community Services | B55: 111938301 | C55: 588565
A56: 2N - Volunteers of America | B56: 200494106 | C56: 126007
A57: 2S - Aacres | B57: 111414302 | C57: 928233
A58: 2S - Alpha Supported Living Services | B58: 111320901 | C58: 040175/827344
A59: 2S - Ambitions | B59: 111901902 | C59: 925035
A60: 2S - Arc of King County | B60: 112013701 | C60: 825497
A61: 2S - Banchero Friends Services | B61: 111415001 | C61: 72441
A62: 2S - Bethesda Lutheran Communities | B62: 111621301 | C62: 432532/433659
A63: 2S - Camelot Society | B63: 101955201 | C63: 303794
A64: 2S - Cascade Community Services | B64: 111875001 | C64: 151578
A65: 2S - Citizen Access Residential Resources | B65: 111533401 | C65: 677982
A66: 2S - Community Integrated Services | B66: 111425302 | C66: 248092
A67: 2S - Community Living | B67: 111962201 | C67: 205884
A68: 2S - Destiny House Operations | B68: 111992801 | C68: 628058
A69: 2S - Friendship House | B69: 111405501 | C69: 44564
A70: 2S - Greenwood Home | B70: 111913301 | C70: 610002
A71: 2S - Habilitation Services | B71: 208173701
A72: 2S - Helping Hands for the Disabled | B72: 111736002 | C72: 626261/903550
A73: 2S - Inglewood Residential and Community Services | B73: 111568401 | C73: 433445
A74: 2S - Integrated Living Services | B74: 111789002 | C74: 180625/681956
A75: 2S - L'Arche Noah Sealth of Seattle | B75: 111798601 | C75: 609889
A76: 2S - Life Skills Center | B76: 111499601 | C76: 68536
A77: 2S - Maksu | B77: 111577901 | C77: 825577
A78: 2S - Nellie Goodhue Group Homes | B78: 111800501 | C78: 610011
A79: 2S - Parkview Services | B79: 111456901 | C79: 602928
A80: 2S - Premier Care Services | B80: 111437001 | C80: 429624
A81: 2S - Provail | B81: 101144803 | C81: 340322
A82: 2S - Puget Sound Regional Services | B82: 111925301 | C82: 825613
A83: 2S - Res-Care Washington | B83: 111968506 | C83: 489354
A84: 2S - Sails | B84: 111805704
A85: 2S - Service Alternatives for WA | B85: 111513302 | C85: 544863
A86: 2S - Shamrock Living Services | B86: 111958301 | C86: 78744
A87: 2S - Shared Journeys | B87: 111515201 | C87: 167481
A88: 2S - Stand Together | B88: 111753401 | C88: 528919
A89: 2S - Tahoma Hills | B89: 111799101 | C89: 351507
A90: 2S - Total Living Concept | B90: 111571101 | C90: 442688/825635
A91: 2S - United Friends Group Home | B91: 101601101 | C91: 601336
A92: 2S - Volunteers of America | B92: 200494104 | C92: 677104
A93: 3N - Aacres WA | B93: 111414304 | C93: 928259
A94: 3N - Ambitions, WA | B94: 111901904 | C94: 925079
A95: 3N - Communitas Group | B95: 102702801 | C95: 539414/789676
A96: 3N - Community Alternatives for People with Autism (CAPA) | B96: 112026801 | C96: 868252
A97: 3N - Educational Programs in Home Living | B97: 111975401 | C97: 219207
A98: 3N - Group Action for Peninsula People | B98: 111703801 | C98: 196657
A99: 3N - Hope Human Services | B99: 207150601
A100: 3N - Kitsap Residences | B100: 111781001 | C100: 116024
A101: 3N - Kitsap Tenant Support Services | B101: 111715902 | C101: 586518
A102: 3N - L'Arche Tahoma Hope Community | B102: 111610303 | C102: 236004
A103: 3N - Life Force Services | B103: 111691201 | C103: 342850
A104: 3N - NW Services for Independent Living | B104: 111812601 | C104: 587155
A105: 3N - Options Unlimited | B105: 111904801 | C105: 625360
A106: 3N - PAM Group Home | B106: 111728401 | C106: 587202
A107: 3N - Puget Sound Assisted Living | B107: 111557601 | C107: 686863
A108: 3N - Res-Care Washington | B108: 111968504 | C108: 378828
A109: 3N - Self Determined Services | B109: 111874501 | C109: 153159
A110: 3N - Service Alternatives for WA | B110: 111513305 | C110: 358400
A111: 3N - Self Reliant Endeavors | B111: 204861001
A112: 3N - Tahoma Associates | B112: 111335302 | C112: 297927
A113: 3N - Valley Supported Living | B113: 111938101 | C113: 965589
A114: 3S - ABC Residential Services | B114: 555777999/444666888 | C114: 111111/333333
A115: 3S - Aacres - Thurston | B115: 111414308 | C115: 929653
A116: 3S - Aacres - Clark | B116: 111414303 | C116: 929653
A117: 3S - Ambitions | B117: 111901905 | C117: 925079
A118: 3S - Another Option | B118: 111619102 | C118: 415519
A119: 3S - Arc of Clark County | B119: 102623403 | C119: 451257
A120: 3S - Brighton Enterprises - Clark | B120: 111686601 | C120: 59722
A121: 3S - Brighton Enterprises - Thurston | B121: 111686602
A122: 3S - Caregivers of Washington | B122: 203690902 | C122: 283667
A123: 3S - CCH Individual Support Services | B123: 111909801 | C123: 597522/987094
A124: 3S - Citizen Access Residential Resources | B124: 111533403/111533401 | C124: 742522
A125: 3S - Community Resources | B125: 111977701 | C125: 550757
A126: 3S - Exceptional Foresters | B126: 111551801 | C126: 593835
A127: 3S - Harbor Alternative Living Association | B127: 111349601 | C127: 593904
A128: 3S - Hope Human Services | B128: 207150603
A129: 3S - Kitsap Tenant Support Services | B129: 111715901 | C129: 493668
A130: 3S - Kokua | B130: 111492901 | C130: 708859
A131: 3S - Life Force Services - Thurston | B131: 111691202 | C131: 261724
A132: 3S - Life Force Services - Clark | B132: 111691204
A133: 3S - Life Works | B133: 111594402 | C133: 098329/597533
A134: 3S - Placeone | B134: 111512001 | C134: 152951
A135: 3S - ROAR | B135: 111442501 | C135: 612114
A136: 3S - Reside Residential Care of Washington | B136: 111864101 | C136: 137760
A137: 3S - SOLO | B137: 111910501 | C137: 642421
A138: 3S - Twin Harbors Group Home Association | B138: 111669901 | C138: 663515
A139: 3S - Vancare | B139: 111811201 | C139: 564924
